{"text_format":"1","workbook":"xlsx","n_sheets":1,"sheets":["Sheet1"],"not_rendered":{"charts":0,"images":0,"macros":1,"external_links":0,"defined_names":0,"comments":0,"pivot_tables":0},"unopened":[],"bounds":{"document_bytes":16777216,"sheet_cells":100000,"rows_first":2000,"rows_last":500,"rows_between":2000,"halvings":0,"cell_chars":16384,"cell_head_chars":4096},"cells_cut":0,"cells_raw":0,"read":"whole","date_system":"1900"}

{"sheet":"Sheet1","index":0,"n_rows":407,"n_cols":3,"rows_kept":407,"cut":false,"hidden":false,"merged":[]}
["م","التاريخ","اليوم"]
[1,"2019-06-19",{"$f":"IF(B2=\"\",\"\",TEXT(B2,\"b2 dddd\"))","v":" الأربعاء"}]
[2,"2019-06-19",{"$f":"IF(B3=\"\",\"\",TEXT(B3,\"b2 dddd\"))","v":" الأربعاء"}]
[null,null,""]
[null,null,""]
[null,null,""]
[null,null,""]
[null,null,""]
[null,null,""]
[null,null,""]
[null,null,""]
[null,null,""]
[null,null,""]
[null,null,""]
[null,null,""]
[null,null,""]
[null,null,""]
[null,null,""]
[null,null,""]
[null,null,""]
[null,null,""]
[null,null,""]
[null,null,""]
[null,null,""]
[null,null,""]
[null,null,""]
[null,null,""]
[null,null,""]
[null,null,""]
[null,null,""]
[null,null,""]
[null,null,""]
[null,null,""]
[null,null,""]
[null,null,""]
[null,null,""]
[null,null,""]
[null,null,""]
[null,null,""]
[null,null,""]
[null,null,""]
[null,null,""]
[null,null,""]
[null,null,""]
[null,null,""]
[null,null,""]
[null,null,""]
[null,null,""]
[null,null,""]
[null,null,""]
[null,null,""]
[null,null,""]
[null,null,""]
[null,null,""]
[null,null,""]
[null,null,""]
[null,null,""]
[null,null,""]
[null,null,""]
[null,null,""]
[null,null,""]
[null,null,""]
[null,null,""]
[null,null,""]
[null,null,""]
[null,null,""]
[null,null,{"$f":"IF(B67=\"\",\"\",TEXT(B67,\"b2 dddd\"))","v":""}]
[null,null,""]
[null,null,""]
[null,null,""]
[null,null,""]
[null,null,""]
[null,null,""]
[null,null,""]
[null,null,""]
[null,null,""]
[null,null,""]
[null,null,""]
[null,null,""]
[null,null,""]
[null,null,""]
[null,null,""]
[null,null,""]
[null,null,""]
[null,null,""]
[null,null,""]
[null,null,""]
[null,null,""]
[null,null,""]
[null,null,""]
[null,null,""]
[null,null,""]
[null,null,""]
[null,null,""]
[null,null,""]
[null,null,""]
[null,null,""]
[null,null,""]
[null,null,""]
[null,null,""]
[null,null,""]
[null,null,""]
[null,null,""]
[null,null,""]
[null,null,""]
[null,null,""]
[null,null,""]
[null,null,""]
[null,null,""]
[null,null,""]
[null,null,""]
[null,null,""]
[null,null,""]
[null,null,""]
[null,null,""]
[null,null,""]
[null,null,""]
[null,null,""]
[null,null,""]
[null,null,""]
[null,null,""]
[null,null,""]
[null,null,""]
[null,null,""]
[null,null,""]
[null,null,""]
[null,null,""]
[null,null,""]
[null,null,""]
[null,null,""]
[null,null,{"$f":"IF(B131=\"\",\"\",TEXT(B131,\"b2 dddd\"))","v":""}]
[null,null,""]
[null,null,""]
[null,null,""]
[null,null,""]
[null,null,""]
[null,null,""]
[null,null,""]
[null,null,""]
[null,null,""]
[null,null,""]
[null,null,""]
[null,null,""]
[null,null,""]
[null,null,""]
[null,null,""]
[null,null,""]
[null,null,""]
[null,null,""]
[null,null,""]
[null,null,""]
[null,null,""]
[null,null,""]
[null,null,""]
[null,null,""]
[null,null,""]
[null,null,""]
[null,null,""]
[null,null,""]
[null,null,""]
[null,null,""]
[null,null,""]
[null,null,""]
[null,null,""]
[null,null,""]
[null,null,""]
[null,null,""]
[null,null,""]
[null,null,""]
[null,null,""]
[null,null,""]
[null,null,""]
[null,null,""]
[null,null,""]
[null,null,""]
[null,null,""]
[null,null,""]
[null,null,""]
[null,null,""]
[null,null,""]
[null,null,""]
[null,null,""]
[null,null,""]
[null,null,""]
[null,null,""]
[null,null,""]
[null,null,""]
[null,null,""]
[null,null,""]
[null,null,""]
[null,null,""]
[null,null,""]
[null,null,""]
[null,null,""]
[null,null,{"$f":"IF(B195=\"\",\"\",TEXT(B195,\"b2 dddd\"))","v":""}]
[null,null,""]
[null,null,""]
[null,null,""]
[null,null,""]
[null,null,""]
[null,null,""]
[null,null,""]
[null,null,""]
[null,null,""]
[null,null,""]
[null,null,""]
[null,null,""]
[null,null,""]
[null,null,""]
[null,null,""]
[null,null,""]
[null,null,""]
[null,null,""]
[null,null,""]
[null,null,""]
[null,null,""]
[null,null,""]
[null,null,""]
[null,null,""]
[null,null,""]
[null,null,""]
[null,null,""]
[null,null,""]
[null,null,""]
[null,null,""]
[null,null,""]
[null,null,""]
[null,null,""]
[null,null,""]
[null,null,""]
[null,null,""]
[null,null,""]
[null,null,""]
[null,null,""]
[null,null,""]
[null,null,""]
[null,null,""]
[null,null,""]
[null,null,""]
[null,null,""]
[null,null,""]
[null,null,""]
[null,null,""]
[null,null,""]
[null,null,""]
[null,null,""]
[null,null,""]
[null,null,""]
[null,null,""]
[null,null,""]
[null,null,""]
[null,null,""]
[null,null,""]
[null,null,""]
[null,null,""]
[null,null,""]
[null,null,""]
[null,null,""]
[null,null,{"$f":"IF(B259=\"\",\"\",TEXT(B259,\"b2 dddd\"))","v":""}]
[null,null,""]
[null,null,""]
[null,null,""]
[null,null,""]
[null,null,""]
[null,null,""]
[null,null,""]
[null,null,""]
[null,null,""]
[null,null,""]
[null,null,""]
[null,null,""]
[null,null,""]
[null,null,""]
[null,null,""]
[null,null,""]
[null,null,""]
[null,null,""]
[null,null,""]
[null,null,""]
[null,null,""]
[null,null,""]
[null,null,""]
[null,null,""]
[null,null,""]
[null,null,""]
[null,null,""]
[null,null,""]
[null,null,""]
[null,null,""]
[null,null,""]
[null,null,""]
[null,null,""]
[null,null,""]
[null,null,""]
[null,null,""]
[null,null,""]
[null,null,""]
[null,null,""]
[null,null,""]
[null,null,""]
[null,null,""]
[null,null,""]
[null,null,""]
[null,null,""]
[null,null,""]
[null,null,""]
[null,null,""]
[null,null,""]
[null,null,""]
[null,null,""]
[null,null,""]
[null,null,""]
[null,null,""]
[null,null,""]
[null,null,""]
[null,null,""]
[null,null,""]
[null,null,""]
[null,null,""]
[null,null,""]
[null,null,""]
[null,null,""]
[null,null,{"$f":"IF(B323=\"\",\"\",TEXT(B323,\"b2 dddd\"))","v":""}]
[null,null,""]
[null,null,""]
[null,null,""]
[null,null,""]
[null,null,""]
[null,null,""]
[null,null,""]
[null,null,""]
[null,null,""]
[null,null,""]
[null,null,""]
[null,null,""]
[null,null,""]
[null,null,""]
[null,null,""]
[null,null,""]
[null,null,""]
[null,null,""]
[null,null,""]
[null,null,""]
[null,null,""]
[null,null,""]
[null,null,""]
[null,null,""]
[null,null,""]
[null,null,""]
[null,null,""]
[null,null,""]
[null,null,""]
[null,null,""]
[null,null,""]
[null,null,""]
[null,null,""]
[null,null,""]
[null,null,""]
[null,null,""]
[null,null,""]
[null,null,""]
[null,null,""]
[null,null,""]
[null,null,""]
[null,null,""]
[null,null,""]
[null,null,""]
[null,null,""]
[null,null,""]
[null,null,""]
[null,null,""]
[null,null,""]
[null,null,""]
[null,null,""]
[null,null,""]
[null,null,""]
[null,null,""]
[null,null,""]
[null,null,""]
[null,null,""]
[null,null,""]
[null,null,""]
[null,null,""]
[null,null,""]
[null,null,""]
[null,null,""]
[null,null,{"$f":"IF(B387=\"\",\"\",TEXT(B387,\"b2 dddd\"))","v":""}]
[null,null,""]
[null,null,""]
[null,null,""]
[null,null,""]
[null,null,""]
[null,null,""]
[null,null,""]
[null,null,""]
[null,null,""]
[null,null,""]
[null,null,""]
[null,null,""]
[null,null,""]
[null,null,""]
[null,null,""]
[null,null,""]
[null,null,""]
[null,null,""]
[null,null,""]
[null,null,""]